bitfinex-derivatives/quotes_SOLF0:USTF0_20241029
["timestamp","ask_amount","ask_price","bid_price","bid_amount"]
[1730220402250,5.52,182.98,182.85,18.08819399]
[1730220402650,2.7341,182.9,182.85,18.08819399]
[1730220405153,2.7342,182.89,182.85,18.08819399]
[1730220405552,2.7344,182.89,182.85,18.08819399]
[1730220406153,6.6824,183.0,182.85,18.08819399]
[1730220406154,5.4653,183.0,182.88,16.87279399]
[1730220406362,6.8052,182.98,182.88,16.87279399]
[1730220406658,2.7341,182.91,182.88,16.87279399]
[1730220407052,6.8052,182.98,182.88,16.87279399]
[1730220407053,5.52,182.93,182.88,16.87279399]
[1730220407465,1.2852,182.98,182.92,16.87279399]
[1730220407756,5.52,182.97,182.92,16.87279399]
[1730220408461,2.7336,182.93,182.92,16.87279399]
[1730220408845,20.17601844,183.15,182.92,22.39279399]
[1730220409046,38.0381919,183.13,182.96,16.87279399]
[1730220409251,38.0381919,183.13,182.92,22.39279399]
[1730220409252,2.5895,183.11,183.0,16.87279399]
[1730220409652,1.2079,183.1,183.0,15.77279399]
[1730220409873,2.7315,183.08,183.03,16.87279399]
[1730220410156,13.00546187,183.13,183.06,16.87279399]
[1730220410365,13.00546187,183.13,183.03,16.87279399]
[1730220410654,13.00546187,183.13,183.06,16.87279399]
[1730220411749,2.7311,183.11,183.06,16.87279399]
[1730220411953,13.00546187,183.13,183.06,16.87279399]
[1730220412158,13.00546187,183.13,183.05,2.7317]
[1730220412159,13.00546187,183.13,183.03,16.87279399]
[1730220412355,13.00546187,183.13,183.04,5.74]
[1730220412759,2.7311,183.11,183.04,5.74]
[1730220412952,13.00546187,183.13,183.04,5.74]
[1730220413465,2.7316,183.07,183.04,5.74]
[1730220413654,2.7316,183.07,183.03,16.87279399]
[1730220413963,2.7316,183.07,183.03,22.61279399]
[1730220414566,13.00546187,183.13,183.03,22.61279399]
[1730220414751,2.7317,183.06,183.03,16.87279399]
[1730220415062,13.00546187,183.13,183.03,16.87279399]
[1730220415362,2.7315,183.08,183.04,2.7319]
[1730220415763,2.7311,183.1,183.06,2.7316]
[1730220415955,13.00546187,183.13,183.06,16.87279399]
[1730220416463,13.00546187,183.13,183.06,19.60449399]
[1730220416665,13.00546187,183.13,183.06,16.87279399]
[1730220417662,2.7312,183.1,183.06,16.87279399]
[1730220418366,13.00546187,183.13,183.06,19.60449399]
[1730220418552,13.00546187,183.13,183.06,16.87279399]
[1730220418760,13.00546187,183.13,183.06,19.60449399]
[1730220418960,13.00546187,183.13,183.06,16.87279399]
[1730220419262,2.731,183.11,183.06,16.87279399]
[1730220419567,13.00546187,183.13,183.06,16.87279399]
[1730220419964,2.7313,183.09,183.06,16.87279399]
[1730220420457,2.7311,183.1,183.06,19.60439399]
[1730220420664,13.00546187,183.13,183.06,16.87279399]
[1730220421064,2.7311,183.11,183.07,2.7314]
[1730220421370,13.00546187,183.13,183.06,16.87279399]
[1730220421566,2.7312,183.1,183.06,19.60449399]
[1730220421870,30.04889625,183.29,183.09,33.74558798]
[1730220422066,1.2258,183.28,183.2,16.87279399]
[1730220422268,50.08149375,183.33,183.2,16.87279399]
[1730220422467,16.87279399,183.29,183.05,5.74]
[1730220422667,16.87279399,183.29,183.14,16.87279399]
[1730220422873,3.90952035,183.28,183.15,16.87279399]
[1730220423068,5.74,183.27,183.15,16.87279399]
[1730220423268,2.7298,183.19,183.13,2.7306]
[1730220423474,5.74,183.23,183.12,16.87279399]
[1730220423673,5.74,183.22,183.15,16.87279399]
[1730220423869,5.74,183.24,183.15,16.87279399]
[1730220424072,5.74,183.24,183.1,5.74]
[1730220424073,2.68603595,183.23,183.12,16.87279399]
[1730220424277,2.73,183.18,183.12,16.87279399]
[1730220424576,10.03686177,183.32,183.16,16.87279399]
[1730220424779,9.64450013,183.31,183.16,19.60299399]
[1730220424965,5.74,183.3,183.16,19.60299399]
[1730220425165,2.4872,183.32,183.12,16.87279399]
[1730220425379,2.4872,183.32,183.22,16.87279399]
[1730220425763,2.4872,183.32,183.19,16.87279399]
[1730220426368,2.7284,183.29,183.19,16.87279399]
[1730220426563,5.74,183.31,183.19,16.87279399]
[1730220426772,5.74,183.31,183.21,16.87279399]
[1730220426973,5.74,183.31,183.21,19.60229399]
[1730220427276,2.4872,183.32,183.21,16.87279399]
[1730220427467,8.2272,183.32,183.21,16.87279399]
[1730220427667,8.2272,183.32,183.19,16.87279399]
[1730220427882,25.09999399,183.32,183.16,16.87279399]
[1730220428175,25.09999399,183.32,183.22,16.87279399]
[1730220428176,2.7279,183.32,183.22,16.87279399]
[1730220428374,16.87279399,183.37,183.22,22.61279399]
[1730220428971,5.74,183.36,183.22,22.61279399]
[1730220429370,5.74,183.36,183.22,25.34209399]
[1730220429570,5.74,183.36,183.22,22.61279399]
[1730220429776,5.504,183.34,183.22,22.61279399]
[1730220429981,5.504,183.32,183.26,2.7287]
[1730220430184,5.504,183.32,183.25,16.87279399]
[1730220430572,5.504,183.32,183.25,19.60159399]
[1730220431077,2.728,183.31,183.26,2.7287]
[1730220431279,5.504,183.37,183.22,22.61279399]
[1730220431280,5.504,183.37,183.27,16.87279399]
[1730220431480,5.504,183.33,183.26,2.7286]
[1730220431674,5.504,183.33,183.25,22.61279399]
[1730220432072,2.728,183.31,183.25,22.61279399]
[1730220432477,5.504,183.33,183.25,22.61279399]
[1730220432684,5.504,183.32,183.25,5.74]
[1730220432883,5.504,183.32,183.21,16.87279399]
[1730220433387,16.87279399,183.3,183.16,16.87279399]
[1730220433586,2.7299,183.19,183.14,2.7304]
[1730220433883,5.74,183.26,183.16,16.87279399]
[1730220434082,1.2173,183.29,183.2,2.7295]
[1730220434083,2.7289,183.25,183.2,2.7295]
[1730220434285,5.74,183.28,183.16,16.87279399]
[1730220434680,2.7293,183.22,183.18,2.7299]
[1730220434885,5.74,183.28,183.16,16.87279399]
[1730220435195,16.87279399,183.25,183.15,2.7303]
[1730220435787,2.7298,183.2,183.15,2.7303]
[1730220436098,5.74,183.23,183.13,16.87279399]
[1730220436280,2.7296,183.21,183.13,16.87279399]
[1730220436888,5.74,183.25,183.13,16.87279399]
[1730220437390,5.74,183.25,183.15,2.7303]
[1730220437586,2.7297,183.2,183.15,2.7303]
[1730220437786,2.7297,183.2,183.13,16.87279399]
[1730220438087,5.74,183.25,183.13,16.87279399]
[1730220438882,2.7294,183.22,183.13,16.87279399]
[1730220439084,5.74,183.25,183.15,2.7302]
[1730220439590,5.74,183.25,183.11,5.74]
[1730220439777,5.74,183.25,183.14,2.7304]
[1730220440090,5.74,183.25,183.11,5.7]
[1730220440091,2.7299,183.19,183.11,5.7]
[1730220440484,5.74,183.25,183.11,5.7]
[1730220441087,5.74,183.25,183.15,2.7303]
[1730220441287,5.74,183.25,183.15,1.7303]
[1730220441288,2.7299,183.19,183.15,1.7303]
[1730220441587,5.74,183.25,183.15,2.7303]
[1730220441787,5.74,183.25,183.11,5.7]
[1730220442185,5.74,183.25,183.15,2.7302]
[1730220442377,5.74,183.25,183.15,16.87279399]
[1730220442989,2.7295,183.22,183.15,16.87279399]
[1730220443285,5.74,183.25,183.15,16.87279399]
[1730220443488,2.76343016,183.28,183.15,16.87279399]
[1730220443790,1.2173,183.29,183.19,16.87279399]
[1730220443983,2.5959,183.31,183.22,16.87279399]
[1730220444188,5.7,183.3,183.22,16.87279399]
[1730220444487,101.31143243,183.48,183.24,16.87279399]
[1730220444690,1.2632,183.36,183.24,16.87279399]
[1730220445082,1.2632,183.36,183.26,2.7286]
[1730220445286,2.7281,183.31,183.26,2.7286]
[1730220445485,5.7,183.35,183.21,16.87279399]
[1730220445685,2.7278,183.32,183.24,16.87279399]
[1730220445891,5.7,183.35,183.24,16.87279399]
[1730220446192,1.2632,183.36,183.27,16.87279399]
[1730220446392,2.7277,183.33,183.27,16.87279399]
[1730220446587,1.2632,183.36,183.27,16.87279399]
[1730220446795,2.7267,183.4,183.33,16.87279399]
[1730220446989,5.7,183.42,183.33,16.87279399]
[1730220447295,3.7496,183.47,183.36,16.87279399]
[1730220447498,2.7262,183.43,183.36,16.87279399]
[1730220448087,3.7496,183.47,183.39,2.7268]
[1730220448284,2.7261,183.44,183.39,16.87279399]
[1730220448487,3.7496,183.47,183.39,16.87279399]
[1730220448797,2.726,183.45,183.39,16.87279399]
[1730220448984,3.7496,183.47,183.39,16.87279399]
[1730220449491,2.7264,183.42,183.39,16.87279399]
[1730220449698,3.7496,183.47,183.39,16.87279399]
[1730220449896,3.7496,183.47,182.85,251.72169268]
[1730220450092,2.7269,183.39,183.22,22.57279399]
[1730220450293,3.7496,183.47,183.34,16.87279399]
[1730220450491,2.7262,183.44,183.34,16.87279399]
[1730220450794,3.7496,183.47,183.35,2.7274]
[1730220451295,3.7496,183.47,183.34,16.87279399]
[1730220452093,2.7272,183.36,183.34,16.87279399]
[1730220452301,2.7272,183.36,183.31,16.87279399]
[1730220452499,5.7,183.39,183.31,19.60059399]
[1730220452697,1.2684,183.38,183.28,16.87279399]
[1730220453100,2.4751,183.37,183.28,16.87279399]
[1730220453398,2.4751,183.37,183.28,19.60109399]
[1730220453603,2.4751,183.37,183.25,16.87279399]
[1730220454293,2.7276,183.34,183.25,19.60159399]
[1730220454491,5.7,183.33,183.25,16.87279399]
[1730220454699,5.7,183.33,183.15,5.7]
[1730220454902,5.7,183.33,183.21,16.87279399]
[1730220455193,22.57279399,183.33,183.21,16.87279399]
[1730220455392,16.87279399,183.3,183.15,16.87279399]
[1730220455598,1.1935,183.29,183.15,16.87279399]
[1730220455788,2.7298,183.19,183.15,16.87279399]
[1730220455989,5.7,183.2,183.15,16.87279399]
[1730220456195,1.2362,183.27,183.15,16.87279399]
[1730220456393,5.7,183.26,183.15,16.87279399]
[1730220456588,1.2185,183.25,183.13,16.87279399]
[1730220456790,2.7294,183.22,183.13,16.87279399]
[1730220457003,5.7,183.21,183.13,16.87279399]
[1730220457895,2.7301,183.18,183.13,16.87279399]
[1730220458101,5.7,183.21,183.13,16.87279399]
[1730220458504,2.7303,183.16,183.13,16.87279399]
[1730220458707,5.7,183.21,183.13,16.87279399]
[1730220458904,5.7,183.21,183.1,16.87279399]
[1730220459105,2.7303,183.16,183.1,19.60379399]
[1730220459301,1.2185,183.25,183.15,16.87279399]
[1730220459908,5.7,183.24,183.12,16.87279399]
[1730220460106,2.7299,183.19,183.13,2.7306]
[1730220460306,5.7,183.19,183.13,2.7306]
[1730220460492,5.7,183.19,183.12,16.87279399]
[1730220460695,2.7301,183.17,183.12,16.87279399]
[1730220460899,5.7,183.19,183.12,16.87279399]
[1730220461201,2.7305,183.14,183.08,2.7313]
[1730220461401,8.4305,183.14,183.08,2.7313]
[1730220461595,5.7,183.14,183.07,16.87279399]
[1730220462009,1.2569,183.17,183.12,16.87279399]
[1730220462403,1.198,183.18,183.15,2.7303]
[1730220462800,1.2519,183.24,183.17,16.87279399]
[1730220463008,30.19864709,183.38,183.25,2.7288]
[1730220463009,1.2368,183.27,183.25,2.7288]
[1730220463308,1.2368,183.27,183.22,16.87279399]
[1730220463609,1.2368,183.27,183.24,2.7289]
[1730220463804,1.2519,183.33,183.24,16.87279399]
[1730220463997,6.9368,183.32,183.22,16.87279399]
[1730220464196,2.7283,183.29,183.22,16.87279399]
[1730220464401,5.7,183.32,183.22,16.87279399]
[1730220465004,2.7283,183.29,183.24,2.7289]
[1730220465510,5.7,183.31,183.27,2.7285]
[1730220465811,5.7,183.33,183.27,16.87279399]
[1730220466006,2.4887,183.39,183.27,16.87279399]
[1730220466199,5.7,183.38,183.3,16.87279399]
[1730220466601,2.7274,183.36,183.31,2.7278]
[1730220467803,5.7,183.38,183.3,16.87279399]
[1730220468306,2.7271,183.37,183.33,2.7277]
[1730220468506,5.7,183.38,183.3,16.87279399]
[1730220469207,2.7273,183.36,183.32,2.7277]
[1730220469413,5.7,183.38,183.32,2.7277]
[1730220469710,5.7,183.38,183.3,16.87279399]
[1730220469711,2.7274,183.35,183.3,16.87279399]
[1730220469921,5.7,183.38,183.27,16.87279399]
[1730220470121,22.57279399,183.38,183.24,16.87279399]
[1730220470410,22.57279399,183.38,183.25,2.7288]
[1730220470616,22.57279399,183.38,183.24,16.87279399]
[1730220471110,22.57279399,183.38,183.1,5.462]
[1730220471111,16.87279399,183.35,183.21,16.87279399]
[1730220471504,2.7289,183.26,183.21,19.60219399]
[1730220471713,5.68,183.28,183.21,16.87279399]
[1730220472215,5.68,183.28,183.23,2.729]
[1730220472404,5.68,183.28,183.21,16.87279399]
[1730220473408,5.68,183.28,183.24,2.7289]
[1730220474613,5.68,183.28,183.21,16.87279399]
[1730220474614,5.68,183.28,183.26,2.7287]
[1730220474818,2.7283,183.3,183.23,16.87279399]
[1730220475115,5.68,183.31,183.23,16.87279399]
[1730220475312,2.7284,183.29,183.24,0.7447]
[1730220475513,2.7284,183.29,183.03,378.34279399]
[1730220475514,16.87279399,183.25,183.08,16.87279399]
[1730220475712,5.68,183.24,183.08,16.87279399]
[1730220475915,2.7301,183.17,183.1,2.731]
[1730220476410,2.7301,183.17,183.08,16.87279399]
[1730220476806,2.7302,183.16,183.08,16.87279399]
[1730220477411,2.7302,183.16,183.1,2.7311]
[1730220477815,5.68,183.18,183.08,16.87279399]
[1730220478010,5.68,183.18,183.09,2.7311]
[1730220478720,2.7305,183.15,183.09,2.7311]
[1730220478917,5.68,183.18,183.09,2.7311]
[1730220479117,2.7305,183.15,183.09,2.7311]
[1730220479414,2.7305,183.15,183.08,16.87279399]
[1730220479415,5.68,183.18,183.08,16.87279399]
[1730220479614,2.7311,183.11,183.05,19.40209399]
[1730220480017,5.7,183.13,183.05,19.40209399]
[1730220480209,2.7312,183.1,183.05,19.40209399]
[1730220480414,16.87279399,183.22,183.08,16.87279399]
[1730220480621,5.7,183.21,183.08,16.87279399]
[1730220480805,2.7308,183.13,183.05,19.43439399]
[1730220481511,8.4304,183.15,183.05,19.43439399]
[1730220481709,8.4304,183.15,183.08,16.87279399]
[1730220481909,5.7,183.19,183.1,16.87279399]
[1730220482119,2.7302,183.16,183.1,16.87279399]
[1730220482311,5.7,183.22,183.15,16.87279399]
[1730220482517,5.7,183.22,183.16,2.7301]
[1730220482716,2.7298,183.19,183.15,16.87279399]
[1730220482920,5.7,183.22,183.15,16.87279399]
[1730220483121,5.7,183.22,183.13,16.87279399]
[1730220483319,2.7303,183.16,183.13,16.87279399]
[1730220484016,5.7,183.17,183.1,16.87279399]
[1730220484316,5.7,183.17,183.07,16.87279399]
[1730220484519,2.7306,183.14,183.09,2.7311]
[1730220484823,2.7306,183.14,183.07,16.87279399]
[1730220485220,5.7,183.17,183.07,16.87279399]
[1730220485416,5.7,183.17,183.09,16.87279399]
[1730220485916,5.7,183.19,183.12,16.87279399]
[1730220486313,5.7,183.19,183.07,5.7]
[1730220486314,2.7308,183.13,183.1,16.87279399]
[1730220486508,5.7,183.19,183.12,16.87279399]
[1730220487015,5.7,183.19,183.14,2.7305]
[1730220487411,2.7302,183.17,183.13,2.7306]
[1730220487608,5.7,183.19,183.12,16.87279399]
[1730220487813,2.5498,183.28,183.15,16.87279399]
[1730220488125,5.7,183.27,183.18,16.87279399]
[1730220488825,2.5498,183.28,183.18,16.87279399]
[1730220489014,2.7289,183.26,183.22,2.7292]
[1730220489214,5.7,183.27,183.21,16.87279399]
[1730220489518,2.729,183.24,183.2,2.7295]
[1730220489718,5.7,183.27,183.18,16.87279399]
[1730220489920,5.7,183.27,183.12,22.57279399]
[1730220489921,5.7,183.27,183.16,16.87279399]
[1730220490511,5.7,183.27,183.13,16.87279399]
[1730220490716,2.7299,183.19,183.15,2.7303]
[1730220490920,5.7,183.2,183.15,16.87279399]
[1730220491120,2.729,183.25,183.21,2.7294]
[1730220491422,5.7,183.26,183.21,16.87279399]
[1730220491930,8.4288,183.26,183.22,2.7292]
[1730220492226,5.7,183.26,183.21,16.87279399]
[1730220492525,5.7,183.26,183.18,16.87279399]
[1730220494119,5.7,183.26,183.21,2.7294]
[1730220494120,2.729,183.25,183.21,2.7294]
[1730220494317,5.7,183.26,183.15,16.87279399]
[1730220494523,2.7292,183.23,183.17,2.73]
[1730220494713,5.7,183.26,183.15,16.87279399]
[1730220495121,75.83279399,183.3,182.7,2.46789803]
[1730220495122,32.97,183.15,182.7,2.46789803]
[1730220495321,16.87279399,183.13,182.98,16.87279399]
[1730220495623,2.7313,183.09,182.98,16.87279399]
[1730220495923,6.4,183.12,182.98,16.87279399]
[1730220496123,2.732,183.04,182.95,16.87279399]
[1730220496328,9.132,183.04,182.95,16.87279399]
[1730220496523,6.4,183.04,182.95,16.87279399]
[1730220497725,9.1321,183.04,182.95,16.87279399]
[1730220498125,6.4,183.04,182.95,16.87279399]
[1730220498330,2.7325,183.01,182.95,16.87279399]
[1730220498634,6.4,183.04,182.94,2.5268]
[1730220499230,2.7326,183.0,182.94,2.5268]
[1730220499434,6.4,183.04,182.94,2.5268]
[1730220499630,2.7322,183.03,182.94,2.5268]
[1730220499835,6.4,183.04,182.96,16.87279399]
[1730220500236,6.4,183.09,182.94,2.5268]
[1730220500425,6.4,183.09,182.97,16.87279399]
[1730220500625,6.4,183.09,182.94,19.39959399]
[1730220501031,16.87279399,183.06,182.94,2.5268]
[1730220501226,16.87279399,183.03,182.93,1.2977]
[1730220501427,2.7332,182.96,182.88,19.60719399]
[1730220501628,2.7332,182.96,182.89,1.1936]
[1730220502331,2.7329,182.99,182.89,1.1936]
[1730220502635,16.87279399,183.0,182.89,1.1936]
[1730220503134,2.7337,182.93,182.89,1.1936]
[1730220503332,6.4,182.95,182.86,1.1966]
[1730220503535,6.4,182.94,182.86,1.1966]
[1730220503726,2.7338,182.93,182.86,1.1966]
[1730220504333,6.4,182.94,182.88,16.87279399]
[1730220504532,61.4846,183.04,182.86,1.1966]
[1730220504533,9.1328,182.99,182.93,16.87279399]
[1730220504744,6.4,182.98,182.93,16.87279399]
[1730220505139,2.7331,182.97,182.93,16.87279399]
[1730220505538,6.4,182.98,182.93,16.87279399]
[1730220505733,6.4,182.98,182.86,1.1966]
[1730220505936,16.87279399,183.0,182.86,1.1966]
[1730220506235,6.4,182.99,182.86,1.1966]
[1730220507040,2.7337,182.93,182.86,1.1966]
[1730220507239,6.4,182.93,182.86,1.1966]
[1730220508241,9.1337,182.93,182.86,3.9313]
[1730220508746,6.4,182.93,182.86,1.1966]
[1730220509234,2.7339,182.92,182.86,16.87279399]
[1730220509544,6.4,182.93,182.86,16.87279399]
[1730220509732,2.7341,182.91,182.84,1.273]
[1730220509940,6.4,182.93,182.84,1.273]
[1730220510337,2.734,182.91,182.84,1.273]
[1730220510534,6.4,182.93,182.84,4.008]
[1730220510736,6.4,182.93,182.86,16.87279399]
[1730220511038,9.1338,182.93,182.86,16.87279399]
[1730220511236,6.4,182.93,182.88,16.87279399]
[1730220511437,6.4,183.0,182.92,16.87279399]
[1730220511639,6.4,183.02,182.95,16.87279399]
[1730220512144,6.4,183.02,182.92,16.87279399]
[1730220512551,6.4,183.02,182.89,16.87279399]
[1730220512734,6.4,183.13,183.0,16.87279399]
[1730220513042,6.4,183.18,183.06,16.87279399]
[1730220513648,2.7309,183.12,183.06,16.87279399]
[1730220513847,6.4,183.18,183.06,16.87279399]
[1730220514051,6.4,183.18,183.06,19.60449399]
[1730220514746,2.7305,183.15,183.06,19.60449399]
[1730220514943,6.4,183.18,183.09,19.60389399]
[1730220515145,6.4,183.17,183.09,19.60389399]
[1730220515341,2.7304,183.15,183.09,16.87279399]
[1730220515542,6.4,183.17,183.09,16.87279399]
[1730220515950,6.4,183.17,183.06,16.87279399]
[1730220516445,2.7309,183.12,183.06,16.87279399]
[1730220516652,6.4,183.17,183.09,19.60389399]
[1730220517249,2.7306,183.14,183.09,16.87279399]
[1730220518048,2.7301,183.17,183.12,16.87279399]
[1730220518351,6.4,183.23,183.13,2.7307]
[1730220518547,2.7296,183.2,183.13,2.7307]
[1730220518746,6.4,183.23,183.12,16.87279399]
[1730220519234,6.4,183.23,183.09,16.87279399]
[1730220519435,23.27279399,183.23,183.09,16.87279399]
[1730220519650,9.46397903,183.22,183.09,16.87279399]
[1730220519850,9.46397903,183.22,183.07,16.87279399]
[1730220520040,16.87279399,183.19,183.07,16.87279399]
[1730220520659,16.87279399,183.19,183.03,16.87279399]
[1730220520947,16.87279399,183.17,183.03,16.87279399]
[1730220521148,2.7319,183.05,183.0,19.60539399]
[1730220521850,2.7319,183.05,183.01,2.7324]
[1730220522055,9.46397903,183.16,183.04,16.87279399]
[1730220522240,10.67962414,183.28,183.15,16.87279399]
[1730220522443,10.67962414,183.28,183.19,27.26386747]
[1730220522639,2.729,183.25,183.19,29.99366747]
[1730220523556,2.7291,183.24,183.19,27.26386747]
[1730220524150,2.4903,183.31,183.19,27.26386747]
[1730220524458,2.7291,183.24,183.19,27.26386747]
[1730220524750,2.7292,183.23,183.19,27.26386747]
[1730220525149,6.4,183.3,183.19,27.26386747]
[1730220525341,2.7293,183.23,183.19,27.26386747]
[1730220525543,6.4,183.3,183.19,27.26386747]
[1730220526249,6.4,183.3,183.2,2.7295]
[1730220526554,6.48,183.29,183.19,27.26386747]
[1730220526751,2.7289,183.25,183.19,29.99346747]
[1730220526951,6.48,183.29,183.19,27.26386747]
[1730220527352,2.7286,183.27,183.22,29.99306747]
[1730220527850,2.7289,183.25,183.22,27.26386747]
[1730220528254,6.48,183.29,183.22,27.26386747]
[1730220528459,2.7287,183.27,183.22,29.99306747]
[1730220528654,6.48,183.29,183.22,29.99306747]
[1730220529561,1.2011,183.33,183.26,2.7287]
[1730220529854,6.48,183.32,183.23,1.2905]
[1730220530158,2.7286,183.27,183.23,1.2905]
[1730220530346,6.48,183.32,183.23,1.2905]
[1730220530546,6.48,183.32,183.25,27.26386747]
[1730220531145,2.7282,183.3,183.25,27.26386747]
[1730220531346,27.26386747,183.4,183.25,27.26386747]
[1730220531546,6.48,183.35,183.25,27.26386747]
[1730220532256,27.26386747,183.4,183.25,27.26386747]
[1730220532459,2.7279,183.32,183.27,2.7286]
[1730220532757,6.48,183.38,183.25,27.26386747]
[1730220533459,5.4519,183.45,183.27,27.26386747]
[1730220533665,1.2242,183.44,183.3,27.26386747]
[1730220534259,6.48,183.43,183.3,27.26386747]
[1730220534758,6.48,183.43,183.31,2.7279]
[1730220534956,6.48,183.43,183.3,27.26386747]
[1730220535151,2.7272,183.37,183.3,27.26386747]
[1730220535955,6.48,183.45,183.33,27.26386747]
[1730220536164,6.48,183.45,183.34,1.2662]
[1730220536555,2.7269,183.39,183.34,3.9937]
[1730220536761,30.00475474,183.54,183.36,27.26386747]
[1730220536954,1.2391,183.5,183.39,27.26386747]
[1730220537154,1.2391,183.5,183.34,1.2662]
[1730220537155,2.7255,183.48,183.42,27.26386747]
[1730220537361,1.2391,183.5,183.42,27.26386747]
[1730220537561,7.6864,183.53,183.42,27.26386747]
[1730220537962,2.7256,183.48,183.43,2.7262]
[1730220538265,7.6864,183.53,183.42,27.26386747]
[1730220538763,2.7256,183.47,183.42,29.99016747]
[1730220538967,7.6864,183.53,183.39,27.26386747]
[1730220539858,27.26386747,183.51,183.36,27.26386747]
[1730220540456,2.7266,183.41,183.36,29.99106747]
[1730220541959,6.48,183.46,183.36,27.26386747]
[1730220542269,6.48,183.46,183.39,27.26386747]
[1730220543064,2.7263,183.43,183.39,27.26386747]
[1730220543272,6.48,183.46,183.39,27.26386747]
[1730220543455,6.48,183.46,183.4,2.7265]
[1730220543456,2.726,183.45,183.4,2.7265]
[1730220543765,6.48,183.46,183.36,27.26386747]
[1730220544065,6.48,183.46,183.34,1.2662]
[1730220544266,9.1799833,183.46,183.34,1.2662]
[1730220544664,9.1799833,183.46,183.36,27.26386747]
[1730220544665,6.48,183.46,183.36,27.26386747]
[1730220544967,6.48,183.46,183.36,16.76613139]
[1730220545267,2.7267,183.4,183.36,16.76613139]
[1730220545463,6.48,183.46,183.36,16.76613139]
[1730220545661,2.7258,183.46,183.38,2.7269]
[1730220545963,6.48,183.48,183.39,16.76613139]
[1730220546767,2.7259,183.45,183.41,2.7265]
[1730220547063,6.48,183.48,183.39,16.76613139]
[1730220547264,6.48,183.48,183.36,16.76613139]
[1730220547562,2.7263,183.43,183.38,2.7268]
[1730220547761,6.48,183.48,183.36,16.76613139]
[1730220548163,16.76613139,183.47,183.34,1.2662]
[1730220548867,16.76613139,183.47,183.34,3.9937]
[1730220549273,2.7269,183.39,183.34,3.9937]
[1730220549565,6.48,183.42,183.36,19.49333139]
[1730220549762,6.48,183.42,183.36,16.76613139]
[1730220550162,6.48,183.42,183.34,1.2662]
[1730220550366,2.727,183.38,183.34,1.2662]
[1730220550569,6.48,183.42,183.34,1.2662]
[1730220550866,2.7272,183.36,183.34,1.2662]
[1730220551068,6.48,183.42,183.34,1.2662]
[1730220551464,2.7269,183.38,183.34,1.2662]
[1730220551869,6.48,183.42,183.34,1.2662]
[1730220552963,6.48,183.42,183.33,16.76613139]
[1730220553369,6.48,183.42,183.31,1.3173]
[1730220553565,2.7271,183.38,183.33,2.7276]
[1730220553774,6.48,183.42,183.31,1.3173]
[1730220554372,2.7276,183.34,183.31,1.3173]
[1730220554672,6.48,183.36,183.27,16.76613139]
[1730220555077,2.728,183.31,183.27,19.49473139]
[1730220555373,16.47,183.3,182.99,2.75416995]
[1730220555574,33.23613139,183.27,183.08,1.2176]
[1730220555877,16.76613139,183.24,183.09,16.76613139]
[1730220556075,2.7298,183.19,183.1,2.731]
[1730220556274,6.2,183.23,183.1,2.731]
[1730220556578,6.2,183.23,183.1,4.0141]
[1730220556877,6.2,183.23,183.1,1.2831]
[1730220557272,2.7301,183.17,183.11,2.731]
[1730220557479,8.9301,183.17,183.11,2.731]
[1730220557676,6.2,183.17,183.11,2.731]
[1730220558570,16.5,183.28,183.12,27.29431983]
[1730220558777,6.2,183.27,183.12,30.02511983]
[1730220559080,16.5,183.28,183.12,27.29431983]
[1730220559276,33.49431983,183.27,183.12,27.29431983]
[1730220559674,2.7299,183.19,183.12,27.29431983]
[1730220559875,6.2,183.18,183.12,30.02511983]
[1730220560174,6.2,183.18,183.12,27.29431983]
[1730220560375,2.7296,183.2,183.12,27.29431983]
[1730220560583,6.2,183.19,183.12,27.29431983]
[1730220561177,8.9298,183.19,183.12,27.29431983]